fUSD/lending_fUSD_20240808
["ID","MTS","AMOUNT","RATE_DAILY","PERIOD"]
[334419415,1723075554661,353.44,8.502e-05,2]
[334419416,1723075710723,150.0,0.00023763,120]
[334419432,1723075832230,-1215.07590594,0.00010094,2]
[334419433,1723075832242,-1311.40320906,0.00010094,2]
[334419434,1723075832251,-438.28,0.00010146,2]
[334419435,1723075832261,-250.0,0.00010292,2]
[334419436,1723075832270,-155.0,0.00010305,2]
[334419437,1723075832279,-526.42821578,0.00010305,2]
[334419438,1723075832288,-661.0,0.00010352,2]
[334419439,1723075832298,-1000.0,0.00010431,2]
[334419440,1723075832307,-306.78,0.00010434,2]
[334419441,1723075832320,-4670.66772354,0.00010484,2]
[334419442,1723075832331,-2839.55549383,0.00010484,2]
[334419443,1723075832342,-557.07764247,0.00010484,2]
[334419444,1723075832353,-1056.0,0.00010484,2]
[334419445,1723075832372,-300.0,0.00010484,2]
[334419446,1723075832458,-598.68914016,0.00010484,2]
[334419447,1723075832468,-180.44,0.00010618,2]
[334419448,1723075832477,-878.59,0.00010693,2]
[334419449,1723075832486,-21.34280246,0.00010693,2]
[334419451,1723075838260,-3303.71751288,0.00010305,2]
[334419452,1723075838270,-478.64719754,0.00010693,2]
[334419453,1723075838278,-3986.72833518,0.00010693,2]
[334419454,1723075838289,-7175.83068284,0.00010693,2]
[334419455,1723075838314,-1605.98,0.00010693,2]
[334419456,1723075838332,-1495.67112458,0.00010693,2]
[334419457,1723075838380,-95.5598574,0.00010693,2]
[334419458,1723075838389,-1008.03,0.00010693,2]
[334419459,1723075838398,-4686.21,0.000107,2]
[334419460,1723075838407,-600.0,0.000107,3]
[334419461,1723075838415,-353.44,0.00010766,2]
[334419462,1723075838423,-304.58270132,0.000108,3]
[334419463,1723075838433,-709.08266212,0.000108,3]
[334419464,1723075838631,-186.33463656,0.000108,3]
[334419465,1723075838640,-273.94,0.00010823,2]
[334419466,1723075838650,-1167.76619,0.0001089,2]
[334419468,1723075838659,-3994.56926617,0.000109,2]
[334419471,1723075838689,-712.43225591,0.000109,2]
[334419494,1723075840717,-1608.91586877,0.000109,2]
[334419495,1723075840728,-462.7030002,0.000109,2]
[334419496,1723075840740,-721.37960895,0.000109,2]
[334419497,1723075840750,-175.28204297,0.000109,2]
[334419498,1723075840759,-1045.27834808,0.000109,3]
[334419499,1723075840773,-656.66,0.000109,3]
[334419500,1723075840784,-98.06165192,0.000109,3]
[334419501,1723075840794,-250.0,0.00010959,2]
[334419502,1723075840803,-7851.43834808,0.00011,2]
[334419503,1723075840814,-1576.97946911,0.00011,2]
[334419504,1723075840826,-8384.57510067,0.00011,2]
[334419505,1723075840837,-267.61699432,0.00011,2]
[334419507,1723075842160,-280.59538529,0.00011,2]
[334419513,1723075842369,-586.9,0.00011,2]
[334419514,1723075842383,-1937.34114729,0.00011,2]
[334419518,1723075843238,-1217.50675063,0.00011,2]
[334419523,1723075844124,-930931.46146824,0.00011,2]
[334419524,1723075844134,-250.0,0.00011,2]
[334419525,1723075844144,-312955.96160801,0.00011,2]
[334419526,1723075844154,-121011.01862796,0.00011,2]
[334419527,1723075844165,-1433.76304378,0.00011,2]
[334419533,1723075846411,-430.79410387,0.00011,2]
[334419535,1723075846470,-500.0,0.00011,2]
[334419536,1723075846481,-695.19249147,0.00011,2]
[334419537,1723075846632,-3518.91517922,0.00011,2]
[334419542,1723076190747,150.0,0.00023889,120]
[334419543,1723076730958,150.0,0.00024959,120]
[334419544,1723076790731,150.0,0.00024766,120]
[334419549,1723077031428,-500.0,0.000108,3]
[334419550,1723077031438,-16.80421995,0.0001089,2]
[334419551,1723077031450,-956.33428005,0.0001089,2]
[334419552,1723077031459,-300.0,0.00010899,2]
[334419553,1723077031469,-543.66571995,0.000109,3]
[334419554,1723077031597,-456.33428005,0.000109,3]
[334419555,1723077031607,-40.46366303,0.000109,2]
[334419559,1723077033621,336.87,9.161e-05,2]
[334419562,1723077037539,-3256.58410075,0.000109,2]
[334419563,1723077037551,-678.46643896,0.000109,2]
[334419564,1723077037600,-660.96571054,0.000109,2]
[334419565,1723077037612,-617.53442811,0.000109,2]
[334419566,1723077037825,-427.20419193,0.000109,2]
[334419567,1723077037838,-999.05767994,0.000109,2]
[334419568,1723077037852,-819.72378674,0.000109,2]
[334419569,1723077037862,-1221.3423,0.000109,2]
[334419570,1723077037871,-150.0,0.00010999,2]
[334419571,1723077037880,-201.71491116,0.00010999,2]
[334419573,1723077037890,-500.0,0.00010999,2]
[334419575,1723077037899,-348.8565021,0.00010999,2]
[334419577,1723077037911,-141.44328802,0.00010999,2]
[334419579,1723077037921,-157.49257632,0.00011,2]
[334419748,1723077039501,-40598.05593484,0.00011,2]
[334419759,1723077039563,-1531.85830089,0.00011,2]
[334419823,1723077040266,-1180.22303273,0.00011,2]
[334419825,1723077040278,-935.2712301,0.00011,2]
[334419827,1723077040291,-615.60574479,0.00011,2]
[334419867,1723077040723,-1594.4435325,0.00011,2]
[334419869,1723077040736,-2010.0,0.00011,2]
[334419871,1723077040748,-622.14930203,0.00011,2]
[334419873,1723077040761,-257.3849488,0.00011,2]
[334419875,1723077040775,-772.2202234,0.00011,2]
[334420118,1723077043421,-460.35272284,0.00011,2]
[334420120,1723077043435,-940.096497,0.00011,2]
[334420122,1723077043446,-1919.52883686,0.00011,2]
[334420276,1723077045775,-5886.8478948,0.00011,2]
[334420277,1723077045786,-8137.0,0.00011,2]
[334420287,1723077320640,-1500.0,0.000139,5]
[334420288,1723077359476,-10740.91179182,0.000138,3]
[334420289,1723077529301,337.41,8.54e-05,2]
[334420290,1723077561062,-7462.05,0.00010308,2]
[334420291,1723077561084,-300.0,0.00010557,2]
[334420292,1723077561107,-4237.95,0.00010558,2]
[334420293,1723077750776,150.0,0.0002415,120]
[334420294,1723077810794,150.0,0.00024277,120]
[334420295,1723077984649,320.53,8.515e-05,2]
[334420296,1723078037208,21794.89455012,8.515e-05,2]
[334420304,1723078231568,-250.0,0.00010094,2]
[334420305,1723078231579,-45.44814184,0.0001014,2]
[334420306,1723078231591,-112.09185816,0.0001014,2]
[334420307,1723078231601,-522.57428558,0.00010321,2]
[334420308,1723078231611,-948.24144298,0.00010321,2]
[334420309,1723078231620,-200.0,0.00010422,2]
[334420310,1723078231631,-640.33202254,0.00010422,2]
[334420311,1723078231640,-300.0,0.00010512,2]
[334420312,1723078231651,-300.0,0.00010512,2]
[334420313,1723078231660,-23900.0,0.00010513,2]
[334420314,1723078231670,-245.42,0.00010575,2]
[334420315,1723078231680,-300.0,0.000107,3]
[334420316,1723078231690,-800.0,0.00010747,2]
[334420317,1723078231700,-320.53,0.00010779,2]
[334420318,1723078231710,-150.0,0.00010799,2]
[334420319,1723078231720,-499.99,0.00010799,2]
[334420320,1723078231730,-1718.77,0.00010799,2]
[334420321,1723078231748,-948.209,0.000108,2]
[334420322,1723078231758,-700.0,0.000108,3]
[334420323,1723078231768,-7787.43,0.000108,2]
[334420324,1723078231778,-840.55,0.000108,2]
[334420325,1723078231788,-150.0,0.00010877,2]
[334420326,1723078231798,-16905.82,0.00010877,2]
[334420327,1723078231807,-1776.19,0.00010877,2]
[334420328,1723078231818,-1500.0,0.0001089,2]
[334420329,1723078231827,-417.222,0.000109,2]
[334420330,1723078231838,-111958.3602,0.000109,2]
[334420331,1723078231848,-8039.5515,0.000109,2]
[334420332,1723078231859,-768.5522,0.000109,2]
[334420333,1723078231868,-46963.93780972,0.000109,2]
[334420335,1723078232032,-2967.87,0.000109,2]
[334420336,1723078232044,-8499.0,0.000109,2]
[334420337,1723078232057,-349.70936002,0.000109,2]
[334420338,1723078232068,-7805.33,0.000109,2]
[334420339,1723078232080,-3537.64514157,0.000109,2]
[334420340,1723078232095,-1192.8949193,0.000109,2]
[334420341,1723078232106,-7041.0290865,0.000109,2]
[334420350,1723078237634,-993.71416344,0.000109,2]
[334420351,1723078237695,-500.0,0.000109,2]
[334420352,1723078237707,-542.99403541,0.000109,2]
[334420353,1723078237719,-1064.11328404,0.000109,2]
[334420354,1723078237728,-1100.0,0.000109,3]
[334420355,1723078237740,-7500.0,0.000109,2]
[334420356,1723078237750,-1093.0,0.000109,2]
[334420357,1723078237759,-250.0,0.00010959,2]
[334420358,1723078237768,-165.07218958,0.00010997,2]
[334420359,1723078237778,-481.45940942,0.00011,2]
[334420360,1723078237790,-57.54059058,0.00011,2]
[334420361,1723078237800,-200.78927685,0.00011,2]
[334420362,1723078237811,-4359.03,0.00011,2]
[334420363,1723078237823,-13985.01264542,0.00011,2]
[334420364,1723078237927,-277.955,0.00011,2]
[334420365,1723078237939,-326.45,0.00011,2]
[334420366,1723078237951,-300.001004,0.00011,2]
[334420367,1723078237962,-1664.7,0.00011,2]
[334420370,1723078239623,-1729.84999999,0.00011,2]
[334420374,1723078240283,-644.08472678,0.00011,2]
[334420377,1723078240297,-75808.07699313,0.00011,2]
[334420393,1723078240722,-1124.02077438,0.00011,2]
[334420394,1723078240735,-2926.4020911,0.00011,2]
[334420395,1723078240748,-376.955934,0.00011,2]
[334420396,1723078240763,-111742.50435818,0.00011,2]
[334420397,1723078240774,-6102.1638032,0.00011,2]
[334420398,1723078240786,-1634.38840113,0.00011,2]
[334420399,1723078240797,-603.68741486,0.00011,2]
[334420400,1723078240809,-826.063556,0.00011,2]
[334420440,1723078242748,-3593.78666846,0.00011,2]
[334420441,1723078242760,-931.13278959,0.00011,2]
[334420442,1723078242771,-286.93626806,0.00011,2]
[334420443,1723078242783,-432.84999998,0.00011,2]
[334420444,1723078242795,-1255.06367634,0.00011,2]
[334420445,1723078242811,-748.63230573,0.00011,2]
[334420446,1723078242827,-427.18428536,0.00011,2]
[334420447,1723078242839,-537.88,0.00011,2]
[334420448,1723078242854,-768.44720034,0.00011,2]
[334420449,1723078242870,-5967.57370409,0.00011,2]
[334420453,1723078243579,-1570.55517767,0.00011,2]
[334420454,1723078243591,-831.48450349,0.00011,2]
[334420455,1723078243612,-715.36994382,0.00011,2]
[334420456,1723078243624,-6020.50980002,0.00011,2]
[334420457,1723078243636,-2978.44655774,0.00011,2]
[334420458,1723078243648,-1599.08934919,0.00011,2]
[334420459,1723078243660,-873.04153788,0.00011,2]
[334420460,1723078243672,-443.07349567,0.00011,2]
[334420461,1723078243683,-650.36277005,0.00011,2]
[334420475,1723078245795,-8388.26784103,0.00011,2]
[334420477,1723078245806,-2439.94300744,0.00011,2]
[334420479,1723078245818,-5385.10398628,0.00011,2]
[334420482,1723078245830,-1295.87497203,0.00011,2]
[334420484,1723078245841,-3666.82998998,0.00011,2]
[334420485,1723078245864,-29345.15677151,0.00011,2]
[334420486,1723078245875,-11102.71816032,0.00011,2]
[334420487,1723078245886,-8137.0,0.00011,2]
[334420488,1723078245943,-11753.76194839,0.00011,2]
[334420489,1723078245955,-430.18684934,0.00011,2]
[334420490,1723078245967,-553.56974129,0.00011,2]
[334420491,1723078245978,-609.53823585,0.00011,2]
[334420492,1723078245990,-31524.15144403,0.00011,2]
[334420493,1723078246004,-458.27649239,0.00011,2]
[334420494,1723078246015,-4350.91636816,0.00011,2]
[334420495,1723078246027,-506.28464956,0.00011,2]
[334420496,1723078246039,-1740.74654837,0.00011,2]
[334420497,1723078246051,-5143.26,0.00011,2]
[334420498,1723078246260,-473.62789852,0.00011,2]
[334420499,1723078246272,-2353.21410219,0.00011,2]
[334420500,1723078246284,-1000.54103258,0.00011,2]
[334420501,1723078246296,-1556.53890048,0.00011,2]
[334420502,1723078246308,-5440.9818521,0.00011,2]
[334420503,1723078246320,-1862.13435004,0.00011,2]
[334420504,1723078246332,-462.12052623,0.00011,2]
[334420505,1723078246343,-992.26795269,0.00011,2]
[334420512,1723078396905,500.0,0.00024959,120]
[334420513,1723078399293,200.0,0.00024986,120]
[334420514,1723078981575,306.02,9.441e-05,2]
[334420515,1723079132048,150.0,0.00024941,120]
[334420516,1723079190833,150.0,0.00024052,120]
[334420531,1723079431776,-2262.31,0.00010483,2]
[334420532,1723079431786,-250.0,0.00010501,2]
[334420533,1723079431796,-246.17,0.00010503,2]
[334420534,1723079431807,-192.41,0.00010567,2]
[334420535,1723079431817,-200.0,0.000107,3]
[334420536,1723079431826,-3621.77033977,0.0001079,2]
[334420537,1723079431836,-2276.20056685,0.0001079,2]
[334420538,1723079431845,-300.0,0.00010798,2]
[334420539,1723079431855,-300.0,0.00010798,2]
[334420540,1723079431865,-967.2436,0.000108,2]
[334420541,1723079431875,-500.0,0.000108,2]
[334420542,1723079431886,-45846.5134,0.000108,2]
[334420543,1723079431896,-1000.0,0.000108,2]
[334420544,1723079431905,-618.3264,0.000108,2]
[334420545,1723079431915,-739.7983,0.000108,2]
[334420546,1723079431924,-635.6682,0.000108,2]
[334420547,1723079431934,-500.0,0.000108,3]
[334420548,1723079431944,-2500.0,0.000108,2]
[334420549,1723079431955,-20070.437,0.00010844,2]
[334420550,1723079431965,-3778.297,0.00010844,2]
[334420551,1723079431974,-289.0,0.00010844,2]
[334420552,1723079431984,-3614.077,0.00010844,2]
[334420553,1723079431993,-1204.0,0.00010844,2]
[334420554,1723079432003,-1815.185,0.00010844,2]
[334420555,1723079432012,-103064.64483709,0.000109,2]
[334420556,1723079432024,-2700.0,0.000109,2]
[334420557,1723079432036,-2085.62894527,0.000109,2]
[334420558,1723079432049,-4900.0,0.000109,2]
[334420559,1723079432233,-3546.95296747,0.000109,2]
[334420569,1723079437951,-3548.37455017,0.000109,2]
[334420570,1723079437961,-441.6466,0.000109,2]
[334420571,1723079437971,-700.0,0.000109,3]
[334420572,1723079437981,-7500.0,0.000109,2]
[334420573,1723079437990,-29678.91,0.000109,2]
[334420574,1723079438000,-250.0,0.00010959,2]
[334420575,1723079438010,-165.07218958,0.00010997,2]
[334420576,1723079438020,-23831.85739067,0.00011,2]
[334420577,1723079438032,-140533.99345,0.00011,2]
[334420578,1723079438043,-1280.71323213,0.00011,2]
[334420579,1723079438347,-5178.42539501,0.00011,2]
[334420580,1723079438359,-285.763033,0.00011,2]
[334420581,1723079438371,-700.54689836,0.00011,2]
[334420621,1723079439969,-415.1,0.00011,2]
[334420622,1723079440278,-5279.5,0.00011,2]
[334420623,1723079440292,-962.16012533,0.00011,2]
[334420624,1723079440304,-1701.63685333,0.00011,2]
[334420625,1723079440738,-1559.71933768,0.00011,2]
[334420626,1723079440750,-1158.65398261,0.00011,2]
[334420627,1723079440763,-8821.75096878,0.00011,2]
[334420628,1723079440775,-84567.13992091,0.00011,2]
[334420629,1723079441234,-675.76719734,0.00011,2]
[334420630,1723079441245,-363.4655,0.00011,2]
[334420631,1723079441257,-1444.85671652,0.00011,2]
[334420632,1723079441268,-590.675,0.00011,2]
[334420633,1723079441279,-397.63098387,0.00011,2]
[334420634,1723079441320,-28500.0,0.00011,2]
[334420635,1723079441410,-111855.72390297,0.00011,2]
[334420636,1723079441421,-706.04,0.00011,2]
[334420675,1723079442984,-7707.22865925,0.00011,2]
[334420677,1723079443001,-707.3898016,0.00011,2]
[334420680,1723079443013,-570.1609495,0.00011,2]
[334420682,1723079443029,-37568.18187001,0.00011,2]
[334420693,1723079443747,-426.949,0.00011,2]
[334420694,1723079443758,-1732.88242047,0.00011,2]
[334420695,1723079443769,-14268.07305389,0.00011,2]
[334420696,1723079443781,-1965.40297485,0.00011,2]
[334420697,1723079443793,-784.38,0.00011,2]
[334420698,1723079443805,-924.976272,0.00011,2]
[334420699,1723079443816,-430.65367495,0.00011,2]
[334420700,1723079443828,-2126.874996,0.00011,2]
[334420701,1723079443839,-255355.28053227,0.00011,2]
[334420702,1723079443850,-412.0,0.00011,2]
[334420703,1723079443861,-1388.82081271,0.00011,2]
[334420704,1723079443873,-566.48105746,0.00011,2]
[334420708,1723079446019,-6346.24612052,0.00011,2]
[334420709,1723079446246,-2046.52607213,0.00011,2]
[334420711,1723079550824,150.0,0.00024129,120]
[334420712,1723079598297,500.0,0.00025,120]
[334420713,1723079600719,200.0,0.00025,120]
[334420714,1723079670727,150.0,0.00024004,120]
[334420718,1723079811869,500.0,0.00025,60]
[334420719,1723079840719,500.0,0.00025,60]
[334420725,1723079910751,150.0,0.00024942,120]
[334420726,1723079920825,500.0,0.00025,60]
[334420727,1723079952883,308.85,8.655e-05,2]
[334420728,1723080030759,150.0,0.00024885,120]
[334420734,1723080423974,293.4,8.436e-05,2]
[334420735,1723080450750,150.0,0.00024196,120]
[334420741,1723080630791,150.0,0.00024561,120]
[334420765,1723080632755,-157.54,0.00010235,2]
[334420767,1723080632765,-1000.0,0.00010324,2]
[334420769,1723080632775,-300.0,0.00010338,2]
[334420771,1723080632785,-300.0,0.00010338,2]
[334420773,1723080632795,-122.3122855,0.00010339,2]
[334420774,1723080632807,-1230.78807392,0.00010339,2]
[334420775,1723080632818,-425.30016265,0.00010339,2]
[334420776,1723080632830,-22121.59947793,0.00010339,2]
[334420777,1723080632840,-250.0,0.00010354,2]
[334420778,1723080632850,-161.18,0.0001036,2]
[334420779,1723080632859,-293.4,0.000107,2]
[334420780,1723080632869,-248.71,0.00010747,2]
[334420781,1723080632879,-302.7628,0.000108,2]
[334420782,1723080632888,-605.7804,0.000108,2]
[334420783,1723080632900,-150.99,0.000108,2]
[334420784,1723080632909,-499.99,0.000108,2]
[334420785,1723080632921,-1656.7912,0.000108,2]
[334420786,1723080632931,-1566.10441081,0.0001089,2]
[334420787,1723080632943,-2348.02,0.0001089,2]
[334420788,1723080632952,-856.3172,0.000109,2]
[334420789,1723080632962,-273.388,0.000109,2]
[334420790,1723080632971,-713.4457,0.000109,2]
[334420791,1723080632980,-44766.7653,0.000109,2]
[334420792,1723080632991,-282.7298,0.000109,2]
[334420793,1723080633001,-4743.1513,0.000109,2]
[334420794,1723080633011,-5721.2252,0.000109,2]
[334420795,1723080633020,-1126.3398,0.000109,2]
[334420796,1723080633029,-12486.5666,0.000109,2]
[334420797,1723080633038,-420.77,0.000109,2]
[334420798,1723080633048,-4930.065,0.000109,2]
[334420799,1723080633057,-2500.0,0.000109,2]
[334420800,1723080633067,-250.0,0.00010959,2]
[334420801,1723080633076,-560.26,0.00010959,2]
[334420803,1723080633086,-183.75984856,0.00010997,2]
[334420805,1723080633095,-500.0,0.00010999,2]
[334420807,1723080633105,-193.20985308,0.00010999,2]
[334420809,1723080633115,-73585.98341091,0.00011,2]
[334420811,1723080633125,-250.0,0.00011,2]
[334420813,1723080633134,-99226.86512186,0.00011,2]
[334420815,1723080633146,-939.82724979,0.00011,2]
[334420817,1723080633157,-3494.76952503,0.00011,2]
[334420821,1723080633181,-1075.9549519,0.00011,2]
[334420823,1723080633195,-554.68214773,0.00011,2]
[334420825,1723080633206,-1517.42729465,0.00011,2]
[334420828,1723080633218,-268.07010932,0.00011,2]
[334420830,1723080633229,-1378.29577402,0.00011,2]
[334420832,1723080633240,-277.50880542,0.00011,2]
[334420834,1723080633251,-19207.54554323,0.00011,2]
[334420836,1723080633263,-351.96,0.00011,2]
[334420839,1723080633274,-421.55839924,0.00011,2]
[334420840,1723080633285,-16824.05464997,0.00011,2]
[334420844,1723080633310,-3955.96712328,0.00011,2]
[334420846,1723080633321,-1577.90951174,0.00011,2]
[334420849,1723080636422,501.829616,0.00025,60]
[334420861,1723080638459,-1694.10382283,0.00011,2]
[334420862,1723080638470,-487.65858491,0.00011,2]
[334420863,1723080638493,-13657.29334409,0.00011,2]
[334420864,1723080638504,-846.00453331,0.00011,2]
[334420865,1723080638515,-561.82928208,0.00011,2]
[334420866,1723080638526,-423.10202108,0.00011,2]
[334420867,1723080638537,-744.74833634,0.00011,2]
[334420868,1723080638548,-581.85624105,0.00011,2]
[334420869,1723080638560,-2200.03350926,0.00011,2]
[334420870,1723080638572,-267.87188157,0.00011,2]
[334420871,1723080638632,-34677.686,0.00011,2]
[334420872,1723080638643,-3027.257157,0.00011,2]
[334420873,1723080638655,-671.79866356,0.00011,2]
[334420874,1723080638887,-4804.6,0.00011,2]
[334420877,1723080638899,-2510.72,0.00011,2]
[334420879,1723080638910,-11775.33259882,0.00011,2]
[334420881,1723080638924,-11456.72412784,0.00011,2]
[334420883,1723080638935,-351.92,0.00011,2]
[334421036,1723080640410,-256.89893274,0.00011,2]
[334421075,1723080640777,-346.56109706,0.00011,2]
[334421077,1723080640792,-819.68910007,0.00011,2]
[334421079,1723080640804,-568.2255499,0.00011,2]
[334421081,1723080640816,-3048.32772882,0.00011,2]
[334421083,1723080640827,-865.43927189,0.00011,2]
[334421085,1723080640838,-670.7,0.00011,2]
[334421088,1723080640850,-62251.70045047,0.00011,2]
[334421090,1723080640861,-533.1,0.00011,2]
[334421092,1723080640872,-92734.28636846,0.00011,2]
[334421094,1723080640882,-487.208,0.00011,2]
[334421096,1723080640891,-1344.0,0.00011,2]
[334421098,1723080640901,-150.0,0.00011,2]
[334421100,1723080640911,-810.0,0.00011,2]
[334421102,1723080640924,-555.0,0.00011,2]
[334421104,1723080640934,-1893.0,0.00011,2]
[334421106,1723080640943,-150.0,0.00011,2]
[334421108,1723080640955,-550.0,0.00011,2]
[334421110,1723080640965,-2916.274811,0.00011,2]
[334421112,1723080640974,-3288.0,0.00011,2]
[334421114,1723080640984,-1139.0,0.00011,2]
[334421116,1723080640997,-247.0,0.00011,2]
[334421118,1723080641007,-1669.32,0.00011,2]
[334421120,1723080641016,-258.4,0.00011,2]
[334421122,1723080641026,-150.0,0.00011,2]
[334421124,1723080641036,-1075.0,0.00011,2]
[334421126,1723080641045,-2762.86301,0.00011,2]
[334421128,1723080641054,-19925.27015567,0.00011,2]
[334421130,1723080641066,-350.1834955,0.00011,2]
[334421133,1723080641081,-1677.4,0.00011,2]
[334421135,1723080641092,-3755.125,0.00011,2]
[334421137,1723080641103,-296.33106017,0.00011,2]
[334421139,1723080641114,-16812.43905191,0.00011,2]
[334421141,1723080641125,-4010.853084,0.00011,2]
[334421143,1723080641136,-475.21517826,0.00011,2]
[334421145,1723080641147,-2116.81533427,0.00011,2]
[334421148,1723080641158,-476.97250148,0.00011,2]
[334421150,1723080641170,-2520.27266204,0.00011,2]
[334421152,1723080641181,-1809.41,0.00011,2]
[334421154,1723080641192,-2352.05509603,0.00011,2]
[334421157,1723080641211,-4832.22556236,0.00011,2]
[334421159,1723080641222,-9920.5,0.00011,2]
[334421161,1723080641233,-1610.53421101,0.00011,2]
[334421163,1723080641244,-3200.6762738,0.00011,2]
[334421165,1723080641256,-4355.31238879,0.00011,2]
[334421167,1723080641267,-492.0,0.00011,2]
[334421169,1723080641278,-3255.0,0.00011,2]
[334421172,1723080641289,-91799.23822227,0.00011,2]
[334421174,1723080641300,-886.78576098,0.00011,2]
[334421176,1723080641311,-83111.61462018,0.00011,2]
[334421178,1723080641323,-2934.96899834,0.00011,2]
[334421180,1723080641334,-312.3160075,0.00011,2]
[334421183,1723080641345,-25549.94544281,0.00011,2]
[334421337,1723080643264,-2833.13889606,0.00011,2]
[334421341,1723080643276,-3686.35424304,0.00011,2]
[334421347,1723080643287,-331.44716209,0.00011,2]
[334421352,1723080643298,-432.0,0.00011,2]
[334421369,1723080644180,-507.99384481,0.00011,2]
[334421370,1723080644193,-297.95376087,0.00011,2]
[334421371,1723080644210,-293.30521316,0.00011,2]
[334421372,1723080644224,-490.99958902,0.00011,2]
[334421373,1723080644237,-735.915,0.00011,2]
[334421374,1723080644250,-1310.89655929,0.00011,2]
[334421375,1723080644263,-17372.54439704,0.00011,2]
[334421376,1723080644276,-310.21644204,0.00011,2]
[334421377,1723080644322,-2609.74574209,0.00011,2]
[334421378,1723080644335,-5557.37127244,0.00011,2]
[334421383,1723080646509,-594.7958,0.000109,2]
[334421384,1723080646522,-1905.2042,0.000109,2]
[334421385,1723080646532,-3694.7958,0.00011,2]
[334421386,1723080646544,-1807.78768604,0.00011,2]
[334421387,1723080646679,-2964.14417912,0.00011,2]
[334421388,1723080699424,308.33706045,0.00025,90]
[334421389,1723080702000,500.0,0.00025,60]
[334421390,1723080757001,500.0,0.00025,60]
[334421391,1723080771319,500.0,0.00025,60]
[334421394,1723080791343,500.0,0.00025,60]
[334421395,1723080940854,500.0,0.00025,60]
[334421396,1723080945009,286.76,9.529e-05,2]
[334421397,1723081077831,276.54197301,9.529e-05,2]
[334421398,1723081089018,500.0,0.00025,60]
[334421399,1723081111503,2000.0,0.00025,60]
[334421400,1723081246862,1652.2779029,0.00025,60]
[334421402,1723081406184,151.74770383,9.323e-05,2]
[334421403,1723081406206,120.67229617,9.323e-05,2]
[334421408,1723081833194,-150.0,0.00010877,2]
[334421409,1723081833204,-150.0,0.00010899,2]
[334421410,1723081833214,-300.0,0.00010899,2]
[334421411,1723081833223,-300.0,0.00010899,2]
[334421412,1723081833233,-818.326,0.000109,2]
[334421413,1723081833242,-1029.0712,0.000109,2]
[334421414,1723081833251,-237.9162,0.000109,2]
[334421416,1723081833261,-15005.7524,0.000109,2]
[334421417,1723081833270,-4.83919929,0.000109,2]
[334421425,1723081833342,-656.00834772,0.000109,2]
[334421427,1723081833354,-9039.00795299,0.000109,2]
[334421429,1723081833364,-9848.0049,0.000109,2]
[334421431,1723081833373,-1310.4205,0.000109,2]
[334421433,1723081833382,-13711.769,0.000109,2]
[334421435,1723081833393,-874.5562,0.000109,2]
[334421437,1723081833402,-825.9845,0.000109,2]
[334421438,1723081833411,-1000.0,0.000109,2]
[334421440,1723081833421,-1047.3276,0.000109,2]
[334421442,1723081833431,-694.2019,0.000109,2]
[334421443,1723081833440,-3346.80741351,0.000109,2]
[334421444,1723081833449,-128463.95130939,0.00011,2]
[334421445,1723081833458,-1280.381,0.00011,2]
[334421446,1723081833467,-1924.0,0.00011,2]
[334421447,1723081833477,-622.0,0.00011,2]
[334421448,1723081833486,-1585.688,0.00011,2]